Cogmind - Beta 14 @@@ ROGUE MODE // 2024.10.06 @ 23:05:32 Player: APerTAS Result: Destroyed by Y-54 Guardian with Gatling Laser Performance ------------- Evolutions (4) 2000 Regions Visited (7) 1400 Robots Destroyed (4) 20 Value Destroyed (207) 207 Prototype IDs (1) 20 Alien Tech Used (0) 0 Bonus (470) 470 TOTAL SCORE: 4117 Bonus ------- Pacifist 470 Cogmind --------- Core Integrity 0/850 Matter 112/300 Energy 99/100 System Corruption 4% Temperature Cool (6) Movement Core (50) Location -6/Lower Caves Parts ------- > --- POWER (1) -------- (None) > --- PROPULSION (2) --- (None) > --- UTILITY (4) ------ (None) > --- WEAPON (8) ------- (None) > --- INVENTORY (5) ---- (None) Peak State ------------ > --- POWER ------------ Micro Nuclear Core > --- PROPULSION ------- Improved VTOL Module Improved VTOL Module > --- UTILITY ---------- Visual Processing Unit Visual Processing Unit Enhanced Optical Array Advanced Melee Analysis Suite > --- WEAPON ----------- Lightning Gun > --- INVENTORY -------- (None) [Rating: 30] Favorites ----------- Power Micro Nuclear Core Power Core Micro Nuclear Core Propulsion Improved VTOL Module Flight Unit Improved VTOL Module Utility Visual Processing Unit Processor Visual Processing Unit Weapon Lightning Gun Energy Gun Lightning Gun Slashing Weapon Katana Build | -11 -10 -9 -8 -7 -6 -6 -6 ------- Run | Yrd Mat Mat Mat Fac Fac Low Low Slots Evolved 8 | . . 2 2 2 2 . . Power . | . . . . . . . . Propulsion . | . . . . . . . . Utility 2 | . . . . . 2 . . Weapon 6 | . . 2 2 2 . . . Parts Attached 11 | . . . 4 5 2 . . Power 1 | . . . . 1 . . . Engine . | . . . . . . . . Core 1 | . . . . 1 . . . Reactor . | . . . . . . . . Propulsion 3 | . . . 3 . . . . Treads . | . . . . . . . . Leg . | . . . . . . . . Wheel . | . . . . . . . . Hover . | . . . . . . . . Flight 3 | . . . 3 . . . . Utility 4 | . . . . 2 2 . . Device . | . . . . . . . . Storage . | . . . . . . . . Processor 4 | . . . . 2 2 . . Hackware . | . . . . . . . . Protection . | . . . . . . . . Artifact . | . . . . . . . . Weapon 3 | . . . 1 2 . . . Energy Gun 2 | . . . . 2 . . . Energy Cannon . | . . . . . . . . Ballistic Gun . | . . . . . . . . Ballistic Cannon . | . . . . . . . . Launcher . | . . . . . . . . Special Weapon . | . . . . . . . . Impact Weapon . | . . . . . . . . Slashing Weapon 1 | . . . 1 . . . . Piercing Weapon . | . . . . . . . . Special Melee Weapon . | . . . . . . . . Unidentified Prototypes 1 | . . . 1 . . . . Parts Lost 6 | . . . 2 1 3 . . Power 1 | . . . . . 1 . . Propulsion 1 | . . . 1 . . . . Utility 1 | . . . . . 1 . . Weapon 3 | . . . 1 1 1 . . Highest Loss Streak 2 | . . . 2 1 2 . . To Critical Strikes 1 | . . . 1 . . . . Average Slot Usage (%) 19 | . . . 15 28 41 . . Core 1 | . . . . 2 4 . . Flight 7 | . . . 10 15 10 . . Processor 7 | . . . . 7 20 . . Energy Gun 1 | . . . . 1 5 . . Peak Build Rating 30 | . . . 11 20 30 . . Average Rating 9 | . . . 6 12 23 . . On Entrance 3 | . . . . 8 20 . . Naked Turns 384 | . 29 41 5 . 41 184 84 Heaviest Build 10 | . . . 2 10 10 . . Greatest Support 10 | 3 3 3 10 10 10 3 3 Greatest Overweight (x) . | . . . . . . . . Average Overweight (x) . | . . . . . . . . Largest Inventory Capacity 5 | 5 5 5 5 5 5 5 5 Average Capacity 5 | 5 5 5 5 5 5 5 5 Most Carried . | . . . . . . . . Average Carried . | . . . . . . . . Final Capacity 5 | 5 5 5 5 5 5 5 5 Final Carried . | . . . . . . . . Class Distribution -------------------- 52% | Mutant 47% | Sprinter Dominant Class ---------------- Mutant | -10/Materials Mutant | -9/Materials Mutant | -8/Materials Sprinter | -7/Factory Sprinter | -6/Factory Mutant | -6/Lower Caves Mutant | -6/Lower Caves Resources | -11 -10 -9 -8 -7 -6 -6 -6 ----------- Run | Yrd Mat Mat Mat Fac Fac Low Low Matter Collected 102 | 39 . . 11 . . 3 49 Remotely . | . . . . . . . . Salvage Created 152 | . . . 11 141 . . . Parts 10 | . . . 3 7 . . . Haulers Intercepted . | . . . . . . . . Recyclers Shooed . | . . . . . . . . Parts Field Recycled . | . . . . . . . . Retrieved Matter . | . . . . . . . . Parts Self-Destructed . | . . . . . . . . Prevented . | . . . . . . . . Kills | -11 -10 -9 -8 -7 -6 -6 -6 ------- Run | Yrd Mat Mat Mat Fac Fac Low Low Combat Hostiles Destroyed 3 | . . . . 3 . . . Guns 1 | . . . . 1 . . . AOE 2 | . . . . 2 . . . Classes Destroyed 3 | . . . 1 2 . . . Builder 1 | . . . 1 . . . . Grunt 2 | . . . . 2 . . . Hunter 1 | . . . . 1 . . . Best Kill Streak 2 | . . . 1 2 . . . Combat Bots Only 2 | . . . . 2 . . . Max Kills in Single Turn 2 | . . . 1 2 . . . Gunslinging . | . . . . . . . . Exploded 2 | . . . . 2 . . . Melee . | . . . . . . . . Uniques/NPCs Destroyed . | . . . . . . . . Combat | -11 -10 -9 -8 -7 -6 -6 -6 -------- Run | Yrd Mat Mat Mat Fac Fac Low Low Hostile Shots Fired 182 | . 4 10 68 22 9 29 40 Missed 82 | . 3 5 31 12 3 13 15 Damage Taken 1590 | . 16 53 341 160 315 253 452 Core 1225 | . 16 53 239 57 155 253 452 Absorbed by Shields . | . . . . . . . . Core Remaining (%) 85 | 100 93 86 56 91 . . . Volleys Fired 10 | . . . . 7 3 . . Largest 1 | . . . . 1 1 . . Hottest 55 | . . . . 55 55 . . Shots Fired 11 | . . . . 7 4 . . Gun 11 | . . . . 7 4 . . Cannon . | . . . . . . . . Launcher . | . . . . . . . . Special . | . . . . . . . . Kinetic . | . . . . . . . . Thermal . | . . . . . . . . Explosive . | . . . . . . . . Electromagnetic 11 | . . . . 7 4 . . Robot Hit Streak 4 | . . . . 3 4 . . Robot Miss Streak 1 | . . . . 1 1 . . Penetration Max . | . . . . . . . . Secondary Targets . | . . . . . . . . Shots Hit Robots 8 | . . . 1 5 2 . . Core Hits 7 | . . . . 6 1 . . Critical Kills . | . . . . . . . . Critical Parts Destroyed . | . . . . . . . . Critical Strikes . | . . . . . . . . Melee Attacks 1 | . . . 1 . . . . Impact . | . . . . . . . . Slashing 1 | . . . 1 . . . . Piercing . | . . . . . . . . Sneak Attacks 1 | . . . 1 . . . . Combat Hostiles . | . . . . . . . . Follow-up Attacks . | . . . . . . . . Damage Inflicted 464 | . . . 76 339 44 . 5 Guns 144 | . . . . 100 44 . . Cannons . | . . . . . . . . Explosions 239 | . . . . 239 . . . Melee 76 | . . . 76 . . . . Ramming 5 | . . . . . . . 5 Kinetic . | . . . . . . . . Thermal . | . . . . . . . . Explosive 239 | . . . . 239 . . . Electromagnetic 144 | . . . . 100 44 . . Impact . | . . . . . . . . Slashing 76 | . . . 76 . . . . Piercing . | . . . . . . . . Highest Corruption 4 | . . . . . 2 2 4 Average Corruption 2 | . . . . . 2 2 2 Corruption Purged . | . . . . . . . . Corruption Blocked . | . . . . . . . . Effects 5 | . . . . . 2 2 1 Message Errors 1 | . . . . . . . 1 Matter Fused 2 | . . . . . . 2 . Data Loss (minor) 1 | . . . . . 1 . . Misfires 1 | . . . . . 1 . . Overload Shots . | . . . . . . . . Overflow Damage 36 | . . . 36 . . . . Projectiles . | . . . . . . . . Explosions . | . . . . . . . . Melee 36 | . . . 36 . . . . Knockbacks . | . . . . . . . . Impact . | . . . . . . . . Kinetic . | . . . . . . . . Secondary . | . . . . . . . . Self-Inflicted Damage 2 | . . . . . . . 2 Shots . | . . . . . . . . Rammed 1 | . . . . . . . 1 Targets Rammed 1 | . . . . . . . 1 Kicked . | . . . . . . . . Crushed . | . . . . . . . . Highest Temperature 45 | . . . . 45 1 . . Average Temperature 15 | . . . . 17 1 . . Received Heat Transfer 375 | . 9 30 45 45 72 . 174 Siege Activations . | . . . . . . . . Robots Corrupted . | . . . . . . . . Combat Hostiles . | . . . . . . . . Parts Fried 1 | . . . . 1 . . . Impact Corruptions . | . . . . . . . . Robots Melted . | . . . . . . . . Combat Hostiles . | . . . . . . . . Parts Melted . | . . . . . . . . Heat Transferred . | . . . . . . . . Parts Sabotaged . | . . . . . . . . Parts Stolen . | . . . . . . . . Parts Stripped . | . . . . . . . . Power Chain Reactions . | . . . . . . . . Alert | -11 -10 -9 -8 -7 -6 -6 -6 ------- Run | Yrd Mat Mat Mat Fac Fac Low Low Peak Influence 407 | . . 31 298 407 273 . . Initial 198 | . . . 13 135 198 . . Average 173 | . . 4 115 198 234 . . Maximum Alert Level 2 | . . . 1 2 1 . . Low Security (%) 53 | 100 100 100 68 76 16 . . Level 1 45 | . . . 31 20 83 . . Level 2 . | . . . . 2 . . . Level 3 . | . . . . . . . . Level 4 . | . . . . . . . . Level 5 . | . . . . . . . . High Security . | . . . . . . . . Max Security . | . . . . . . . . Squads Dispatched 2 | . . 1 1 . . . . Investigation 1 | . . 1 . . . . . Extermination . | . . . . . . . . Reinforcement 1 | . . . 1 . . . . Assault . | . . . . . . . . Garrison . | . . . . . . . . Intercept . | . . . . . . . . Searches Triggered . | . . . . . . . . Construction Impeded . | . . . . . . . . Haulers Reinforced . | . . . . . . . . Active Scanning Responses . | . . . . . . . . Cargo Convoy Interrupts . | . . . . . . . . Stealth | -11 -10 -9 -8 -7 -6 -6 -6 --------- Run | Yrd Mat Mat Mat Fac Fac Low Low Distress Signals 1 | . . . 1 . . . . Communications Jammed . | . . . . . . . . Distress Signals . | . . . . . . . . Times Spotted 61 | . 3 7 26 6 6 7 6 Peak Tracking Total 13 | . 3 7 13 3 3 4 5 Tactical Retreats 13 | . . 1 4 2 3 2 1 Traps | -11 -10 -9 -8 -7 -6 -6 -6 ------- Run | Yrd Mat Mat Mat Fac Fac Low Low Traps Triggered 3 | . . . . . 3 . . Indirectly . | . . . . . . . . Trap Hack Attempts . | . . . . . . . . Triggered . | . . . . . . . . Disarmed . | . . . . . . . . Reprogrammed . | . . . . . . . . Reused . | . . . . . . . . Traps Extracted . | . . . . . . . . Installed . | . . . . . . . . Triggered . | . . . . . . . . Objects Rigged 4 | . . . . 4 . . . Exploded 2 | . . . . 2 . . . Machines | -11 -10 -9 -8 -7 -6 -6 -6 ---------- Run | Yrd Mat Mat Mat Fac Fac Low Low Machines Disabled 5 | . . . . 4 1 . . Max in Single Turn 4 | . . . . 4 1 . . Machines Repaired . | . . . . . . . . Machines Dismantled . | . . . . . . . . Machines Sabotaged . | . . . . . . . . Overloaded Fab Kills . | . . . . . . . . Hacking | -11 -10 -9 -8 -7 -6 -6 -6 --------- Run | Yrd Mat Mat Mat Fac Fac Low Low Machines Accessed 4 | . . 1 . 2 1 . . Terminals 3 | . . 1 . 1 1 . . Fabricators . | . . . . . . . . Repair Stations . | . . . . . . . . Recycling Units . | . . . . . . . . Scanalyzers . | . . . . . . . . Garrison Access 1 | . . . . 1 . . . Total Hacks 8 | . . 3 . 3 2 . . Successful 3 | . . 2 . 1 . . . Failed 5 | . . 1 . 2 2 . . Catastrophic 3 | . . 1 . 1 1 . . Database Lockouts . | . . . . . . . . Manual 8 | . . 3 . 3 2 . . Terminals 7 | . . 3 . 2 2 . . Fabricators . | . . . . . . . . Repair Stations . | . . . . . . . . Recycling Units . | . . . . . . . . Scanalyzers . | . . . . . . . . Garrison Access 1 | . . . . 1 . . . Terminal Hacks . | . . . . . . . . Fabricator Hacks . | . . . . . . . . Repair Station Hacks . | . . . . . . . . Recycling Unit Hacks . | . . . . . . . . Scanalyzer . | . . . . . . . . Garrison Access Hacks . | . . . . . . . . Unauthorized Hacks 2 | . . 1 . 1 . . . Terminals 2 | . . 1 . 1 . . . Detonate 2 | . . 1 . 1 . . . Fabricators . | . . . . . . . . Repair Stations . | . . . . . . . . Recycling Units . | . . . . . . . . Scanalyzers . | . . . . . . . . Garrison Access . | . . . . . . . . Data Cores Recovered . | . . . . . . . . Used . | . . . . . . . . Hacking Detections 4 | . . 1 . 2 1 . . Full Trace Events 1 | . . 1 . . . . . Feedback Events . | . . . . . . . . Feedback Blocked . | . . . . . . . . Robot Schematics Acquired . | . . . . . . . . Robots Built . | . . . . . . . . Authchips . | . . . . . . . . Time . | . . . . . . . . Total Robot Build Rating . | . . . . . . . . Part Schematics Acquired . | . . . . . . . . Parts Built . | . . . . . . . . Authchips . | . . . . . . . . Time . | . . . . . . . . Total Part Build Rating . | . . . . . . . . Parts Repaired . | . . . . . . . . Time . | . . . . . . . . Parts Recycled . | . . . . . . . . Recycled Matter . | . . . . . . . . Retrieved Matter . | . . . . . . . . Retrieved Components . | . . . . . . . . Parts Scanalyzed . | . . . . . . . . Part Schematics Acquired . | . . . . . . . . Parts Damaged . | . . . . . . . . Bothacking | -11 -10 -9 -8 -7 -6 -6 -6 ------------ Run | Yrd Mat Mat Mat Fac Fac Low Low Used RIF Installer . | . . . . . . . . Robots Hacked . | . . . . . . . . Non-combat . | . . . . . . . . Combat . | . . . . . . . . Robot Hacks Applied . | . . . . . . . . Relay Couplers Released . | . . . . . . . . Fabnet Peak Effective % . | . . . . . . . . Robots Rewired . | . . . . . . . . Allies Hacked . | . . . . . . . . Hacks Repelled . | . . . . . . . . Allies | -11 -10 -9 -8 -7 -6 -6 -6 -------- Run | Yrd Mat Mat Mat Fac Fac Low Low Total Allies . | . . . . . . . . Largest Group . | . . . . . . . . Highest-Rated Group . | . . . . . . . . Highest-Rated Ally . | . . . . . . . . Total Orders . | . . . . . . . . Ally Attacks . | . . . . . . . . Total Damage . | . . . . . . . . Kills . | . . . . . . . . Allies Corrupted . | . . . . . . . . Allies Melted . | . . . . . . . . Intel | -11 -10 -9 -8 -7 -6 -6 -6 ------- Run | Yrd Mat Mat Mat Fac Fac Low Low Robot Analysis Total . | . . . . . . . . Derelict Logs Recovered 1 | . . . . . . 1 . Drone Launches . | . . . . . . . . Drone Recoveries . | . . . . . . . . Exploration | -11 -10 -9 -8 -7 -6 -6 -6 ------------- Run | Yrd Mat Mat Mat Fac Fac Low Low Turns Passed 842 | 9 29 41 86 172 237 184 84 Spaces Moved 1818 | 18 58 81 211 469 448 368 165 Core 814 | 18 58 81 41 . 83 368 165 Treads . | . . . . . . . . Legs . | . . . . . . . . Wheels . | . . . . . . . . Hover . | . . . . . . . . Flight 1004 | . . . 170 469 365 . . Fastest Speed 32 | 50 50 50 32 32 32 50 50 Average Speed 40 | 50 50 50 36 32 35 50 50 Slowest Speed 50 | 50 50 50 50 32 50 50 50 Overloaded Moves . | . . . . . . . . Propulsion Burnouts . | . . . . . . . . Robots Hopped 6 | . . . 2 3 1 . . Cave-ins Triggered . | . . . . . . . . Exploration Rate (%) 23 | 3 15 13 28 17 11 63 36 Regions Visited 7 Branch Regions 2 Pre-discovered Areas . | . . . . . . . . Known Exits Taken . | . . . . . . . . Unknown Exits Taken 7 | 1 1 1 1 1 1 1 . Scrap Searched 1 | . . . . . . . 1 Spaces Dug . | . . . . . . . . Terrain Destroyed 33 | . . . . 33 . . . Melee . | . . . . . . . . Projectile . | . . . . . . . . AOE 33 | . . . . 33 . . . Terrain Rammed . | . . . . . . . . Walls Destroyed . | . . . . . . . . Machines Disabled . | . . . . . . . . Actions | -11 -10 -9 -8 -7 -6 -6 -6 --------- Run | Yrd Mat Mat Mat Fac Fac Low Low Total 1898 | 17 57 80 213 477 521 367 166 Wait 70 | . . . . . 70 . . Move 1799 | 17 57 80 206 462 445 367 165 Hop 6 | . . . 2 3 1 . . Pick Up . | . . . . . . . . Fast Attach 11 | . . . 4 5 2 . . Attach . | . . . . . . . . Detach . | . . . . . . . . Swap . | . . . . . . . . Drop . | . . . . . . . . Fire 10 | . . . . 7 3 . . Melee 1 | . . . 1 . . . . Ram 1 | . . . . . . . 1 Kick . | . . . . . . . . Crush . | . . . . . . . . Escape Stasis . | . . . . . . . . Rewire . | . . . . . . . . Trap . | . . . . . . . . Miscellaneous . | . . . . . . . . Route ------- -11/Scrapyard -10/Materials -9/Materials -8/Materials -7/Factory -6/Factory -6/Lower Caves -6/Lower Caves History --------- Turn | Location | Event 5 | -11/Scrapyard | Discovered new exit (range 12) 10 | -11/Scrapyard | Entered Materials 36 | -10/Materials | Discovered new exit (range 6) 39 | -10/Materials | Entered another Materials area 39 | -9/Materials | Evolved 2 slots: Weapon x2 74 | -9/Materials | Discovered new exit (range 8) 80 | -9/Materials | Entered another Materials area 80 | -8/Materials | Evolved 2 slots: Weapon x2 161 | -8/Materials | Discovered new exit (range 15) 166 | -8/Materials | Entered Factory 166 | -7/Factory | Evolved 2 slots: Weapon x2 332 | -7/Factory | Discovered new exit (range 18) 338 | -7/Factory | Entered another Factory area 338 | -6/Factory | Evolved 2 slots: Utility x2 445 | -6/Factory | Build established: Sprinter 534 | -6/Factory | Released all parts (5) 569 | -6/Factory | Discovered new exit (range 13) 575 | -6/Factory | Entered Lower Caves 677 | -6/Lower Caves | Learned 4 Factory zone layouts 752 | -6/Lower Caves | Discovered new exit (range 14) 759 | -6/Lower Caves | Entered another Lower Caves area 760 | -6/Lower Caves | Encountered a Warlord checkpoint 781 | -6/Lower Caves | Core integrity fell below 50% 802 | -6/Lower Caves | Core integrity fell below 20% 825 | -6/Lower Caves | Build established: Mutant 843 | -6/Lower Caves | Destroyed by Y-54 Guardian with Gatling Laser Last Messages --------------- 00593_ System corrupted: Matter fused (-5). 00601_ 7R-B5L(r) destroyed. 00601_ KF-S0Q(r) collects Com. Wheel. 00619_ System corrupted: Matter fused (-5). 00658_ Acquired 3 matter. 00677_ Acquired derelict log, extracted data. Data stored: Factory zone layouts (x4). 00752_ EXIT=FOUND LOCATION=UNKNOWN GOAL=ESCAPE 00760_ 95-Z4S(M): "Unaware activity is slow around here lately. Bring on the action!" 00770_ Searching scrap... 00770_ Found Mak. Sword. 00770_ Found 35 Matter. 00771_ Acquired 35 matter. 00774_ N2-6XR(k) breaks down the debris. 00798_ Slammed into G-50 Soldier. 00802_ Acquired 14 matter. 00816_ UMEIRADV 5S|BN1I4>T%/G Map ----- +----------------------------------------------------+ | | | ?????????????????????????????????????????????????? | | ?????????????????????????????????????????????????? | | ?????????????????????????????????????????????????? | | ?????????????????????????????????????????????????? | | ?????????????????????????????????????????????????? | | ?????????????????????????????????????????????????? | | ?????????????????????????????????????????????????? | | ?????????????????????????????????????????????????? | | ?????????????????????????????????????????????????? | | ?????????????????????????????????????????????????? | | ?????????????????????????????????????????????????? | | ?????????????????????????????????????????????????? | | ?????????????????????????????????????????????????? | | ?????????????????????????????????????????????????? | | ???????????????#?????????????????????????????????? | | ??????????????## #???????????????????????????????? | | ??????????????# #????????#?????????????????????? | | ?????????????## ###???## ?????????????????????? | | ?????????????# #?## ?????????????????????? | | ?????????????? ## #?????????????? ?????? | | ?????????????????# ###########??? #???? | | ?????????????????# #??? #??? | | ?????????? ## #??# ???? | | ?????????? ######## #?? ??? | | ?????????? Y @ #??????# ### #??? | | ?????????? #?????# #??? | | ?????????? #????# #### #??# | | ??????????? ####???## ### ### | | ??????????? ##?????## ## | | ???????????? #### #??????## | | ?????????????????# ???????# | | ?????????????????# ###???????## # | | ?????????????????# ???????????# ### | | ?????????????????# ????????????# ##?? | | ?????????????????# ????????????# ##?? | | ????????????????? ????????????# ##? | | ????????????????# ?????????????# #### #? | | ???????????????????????????????#######??## ## | | ?????????????????????????????????????????# #?? | | ??????????????????????????####???????????# #???# | | ??????????????????????????# ######????## #????? | | ??????????????????????????# ##???# ####?? | | ???????????????????????????# #???# ##? | | ????????????????????????????# ##### #? | | ?????????????????????????????# #? | | ?????????????????????????????## ####? | | ??????????????????????????????# ##???? | | ?????????????????????????????## ### ## ##????? | | ?????????????????????????????# ### #####?????? | +----------------------------------------------------+ Best States ------------- Heat Dissipation 37 Energy Generation 15 Energy Capacity 150 Matter Stores 139 Matter Capacity 300 Sight Range 22 Terrain Scan Density 10 Evasion (%) 63 Melee Accuracy 8 Item Schematics ----------------- None Robot Schematics ------------------ None Fabricated ------------ Nothing Alien Tech Used ----------------- None Achievements -------------- None Challenges ------------ None Game ------ Seed ScatterAuthchipObliterator Manual? 0 Play Time 00:10:39 Cumulative 30.9 hours Start 2024.10.06 @ 22:55:51 End 2024.10.06 @ 23:05:32 Sessions 1 Manual Loads 0 Difficulty Rogue Special Mode None Game No. 119 Rogue 119 Adventurer 0 Explorer 0 Win Type - Total 0 Types 0/0/0/0/0/0/0/0/0 Lore% 42 Gallery% 29 Achievement% 33 Wizard Run 0 Options --------- Layout 0 ASCII 0 Keyboard 0 Movement Arrows Keybinds 0 Fullscreen 1 Font 24/Terminus Map View 64x52 Zoom Use 0% Tactical HUD 1 Map Filters NONE Filters NONE Steam X RUN: 316d962f-2f4e-40f2-b909-4c2f36d6f876